{"text_format":"1","workbook":"xlsx","n_sheets":6,"sheets":["How It Works","South","West","East","Midwest","Final Four"],"not_rendered":{"charts":0,"images":56,"macros":1,"external_links":0,"defined_names":0,"comments":0,"pivot_tables":0},"unopened":[],"bounds":{"document_bytes":16777216,"sheet_cells":100000,"rows_first":2000,"rows_last":500,"rows_between":2000,"halvings":0,"cell_chars":16384,"cell_head_chars":4096},"cells_cut":0,"cells_raw":0,"read":"whole","date_system":"1900"}

{"sheet":"How It Works","index":0,"n_rows":267,"n_cols":10,"rows_kept":267,"cut":false,"hidden":false,"merged":[]}
[]
[]
["First Round Matchups","High","Low","Total","% High","% Low","RNG Exp","RNG Used",null,"Changes or reasons for using this RNG instead of the experienced one (the RNG will be from 1 to 10000)"]
["1 vs 16",112,0,{"$f":"B4+C4","v":112},{"$f":"B4/D4","v":1},{"$f":"C4/D4","v":0},{"$f":"E4*10000","v":10000},9970,"*","Although a 16 seed has never beaten a 1, it is bound to happen. This allows the 16 seed to win if the RNG is larger than 9998 (or basically, about .01% chance)."]
["2 vs 15",106,6,{"$f":"B5+C5","v":112},{"$f":"B5/D5","v":0.9464285714285714},{"$f":"C5/D5","v":5.3571428571428568E-2},{"$f":"E5*10000","v":9464.2857142857138},9464]
["3 vs 14",96,16,112,0.8571428571428571,0.14285714285714285,8571.4285714285706,8571]
["4 vs 13",88,24,112,0.7857142857142857,0.21428571428571427,7857.1428571428569,7857]
["5 vs 12",74,38,112,0.6607142857142857,0.3392857142857143,6607.1428571428569,6607]
["6 vs 11",74,38,112,0.6607142857142857,0.3392857142857143,6607.1428571428569,6607]
["7 vs 10",67,45,112,0.5982142857142857,0.4017857142857143,5982.1428571428569,5982]
["8 vs 9",54,58,112,0.48214285714285715,0.5178571428571429,4821.4285714285716,4821]
[]
["Second Round Matchups","High","Low","Total","% High","% Low","RNG Exp","RNG Used"]
["1 vs 8",44,10,{"$f":"B14+C14","v":54},{"$f":"B14/D14","v":0.81481481481481477},{"$f":"C14/D14","v":0.18518518518518517},{"$f":"E14*10000","v":8148.1481481481478},8148]
["1 vs 9",54,4,{"$f":"B15+C15","v":58},{"$f":"B15/D15","v":0.93103448275862066},{"$f":"C15/D15","v":6.8965517241379309E-2},{"$f":"E15*10000","v":9310.3448275862065},9310]
["8 vs 16","-","-","-","-","-","-",9950,"*","Gives a 16 seed a slightly higher chance than when playing a 1 seed"]
["9 vs 16","-","-","-","-","-","-",9930,"*","Gives a 16 seed a slightly higher chance than when playing an 8 seed"]
["4 vs 5",32,28,{"$f":"B18+C18","v":60},0.53333333333333333,0.46666666666666667,5333.333333333333,5333]
["4 vs 12",17,11,28,0.6071428571428571,0.39285714285714285,6071.4285714285706,6071]
["5 vs 13",11,3,14,0.7857142857142857,0.21428571428571427,7857.1428571428569,7857]
["12 vs 13",8,2,10,0.8,0.2,8000,8222,"*","The trend shows a 12 dominating the 13, but a little more balance would be expected as only 10 games have been played"]
["3 vs 6",34,27,61,0.55737704918032782,0.44262295081967212,5573.7704918032778,5574]
["3 vs 11",23,12,35,0.65714285714285714,0.34285714285714286,6571.4285714285716,6571]
["6 vs 14",11,2,13,0.84615384615384615,0.15384615384615385,8461.538461538461,8667,"*","Lack of too many games, giving the 6 seed more of an advantage"]
["11 vs 14",3,0,3,1,0,10000,9111,"*","Give the 11 seed a heavy advantage, but it is not a 100% that they beat the 14 seed in my opinion because only 3 games have been played."]
["2 vs 7",48,17,65,0.7384615384615385,0.26153846153846155,7384.6153846153848,7385]
["2 vs 10",24,17,41,0.58536585365853655,0.41463414634146339,5853.6585365853653,5854]
["7 vs 15",2,0,2,1,0,10000,9375,"*","The 15 seed is a longshot to win, but since it is only a 7 seed give them some chance"]
["10 vs 15",4,0,4,1,0,10000,9111,"*","15 seed is a longshot to win. Of the 19 games played between double digit seeds, the higher seed has only won 3 times, so not looking good for the 15."]
[]
["Sweet Sixteen","High","Low","Total","% High","% Low","RNG","RNG Used"]
["1 vs 4",29,12,{"$f":"B32+C32","v":41},{"$f":"B32/D32","v":0.70731707317073167},{"$f":"C32/D32","v":0.29268292682926828},{"$f":"E32*10000","v":7073.1707317073169},7073]
["1 vs 5",28,7,{"$f":"B33+C33","v":35},{"$f":"B33/D33","v":0.8},{"$f":"C33/D33","v":0.2},{"$f":"E33*10000","v":8000},8000]
["1 vs 12",18,0,18,1,0,10000,9960,"*","12 seed is a long shot to win, and in reality probably have a less than 1% chance to win, but since 18 games have been played need to make the 1 seed a heavy favorite"]
["1 vs 13",4,0,4,1,0,10000,9945,"*","13 seed is also a long shot, with even less of a chance then the 12 seed to win"]
["4 vs 8",2,4,6,0.33333333333333331,0.66666666666666663,3333.333333333333,4575,"*","Because of how strong the 4 and 8 seeds play against the 1 (overall 21-68(23.6%) compared to the 5 and 9 seeds being 11-81(11.2%)) so this should be a lot closer matchup than a 1 in 3 chance for the 4 seed"]
["4 vs 9",2,0,2,1,0,10000,8333,"*","Because of how well the 4 seed plays against the 1 compared to the 9 seed vs the 1, this would appear to be highly favorable for the 4 seed, but give the 9 seed a 1 in 6 chance because it has only occurred twice."]
["4 vs 16","-","-","-","-","-","-",9960,"*","Never occurred, but the 4 seed would be almost as dominant as the 1 seed in this matchup"]
["5 vs 8",0,2,2,0,1,0,4222,"*","An actual matchup where the 8 seed is favored because of how much better they play against the 1 and 4, where the 5 seed has struggled in those matchups."]
["5 vs 9",1,1,2,0.5,0.5,5000,7425,"*","5 seed has to be a favorite with about a 1 in 4 chance of the 9 seed with the upset."]
["5 vs 16","-","-","-","-","-","-",9945,"*","5 seed would be heavily favored, just a little bit lower than a 4 seed"]
["8 vs 12",0,1,1,0,1,0,8333,"*","8 seed is heavily favored because how to tough they are against the 1,4,and 5 seeds. Compared to the 12 seed against these matchups, the 12 would win only about 1 in 6"]
["8 vs 13",1,0,1,1,0,10000,9275,"*","8 seed has to be more favored than when it played the 12 seed, just by using records against similar teams."]
["9 vs 12","-","-","-","-","-","-",8245,"*","9 seed is favored to win just over 80%"]
["9 vs 13","-","-","-","-","-","-",8755,"*","9 seed is likely to win most of the matchups, around 88%"]
["12 vs 16","-","-","-","-","-","-",9167,"*","12 is a heavy favorite, losing about 1 in 12"]
["13 vs 16","-","-","-","-","-","-",8889,"*","13 is a favorite, losing only 1 in 9"]
["2 vs 3",22,13,35,0.62857142857142856,0.37142857142857144,6285.7142857142853,6286]
["2 vs 6",20,6,26,0.76923076923076927,0.23076923076923078,7692.3076923076924,7692]
["2 vs 11",10,1,11,0.90909090909090906,9.0909090909090912E-2,9090.9090909090901,9222,"*","2 seeds dominate the 11 seed, maybe even a bit more than what the tournament has produced"]
["2 vs 14","-","-","-","-","-","-",9777,"*","This has never occurred, and the 14 seed has lost both chances in the Sweet Sixteen, so they are very unlikely to matchup well against a 2 seed"]
["3 vs 7",6,3,9,0.66666666666666663,0.33333333333333331,6666.6666666666661,6667,"*","Although 7s beat the 10 seed more often, the 10 seed plays both the 3 and 2 seeds much better, but keep a 1 in 3 chance."]
["3 vs 10",9,4,13,0.69230769230769229,0.30769230769230771,6923.0769230769229,6923]
["3 vs 15","-","-","-","-","-","-",9930,"*","3 seed is a heavy favorite, as all 4 15 seeds to upset the 2 seed have lost to the 7 and 10 seeds"]
["6 vs 7",3,3,6,0.5,0.5,5000,5555,"*","Give the 6 seed a slight advantage over a coin flip matchup"]
["6 vs 10",4,2,6,0.66666666666666663,0.33333333333333331,6666.6666666666661,6272,"*","10 seeds have historically played tough after the first round, beating the 2 seed almost 43% in the second round. This means they would play a 6 seed a lot tougher than the 3 seed"]
["6 vs 15","-","-","-","-","-","-",9805,"*","6 seeds are strong in the Sweet Sixteen, and since a 15 seed has never been, this may be over before it started"]
["7 vs 11",0,3,3,0,1,0,4615,"*","Surprisingly the 11 seeds are undefeated against 7 seeds thus far, but with only 3 matchups I would expect this match to be closer to a coinflip, giving the 11 seed a slight edge for past experience"]
["7 vs 14",1,0,1,1,0,10000,9191,"*","14 seeds have never made it past this round, only been to the Sweet Sixteen twice, so they have to be heavy underdogs"]
["10 vs 11",0,1,1,0,1,0,4351,"*","Probably the best double digit seeded matchup you could ask for, and extremely close to a coinflip, but edge goes to the 11 for their record in later rounds"]
["10 vs 14",1,0,1,1,0,10000,7222,"*","10 seeds would be a favorite, but don't give the game away because the 14 seed stands about a 1 in 4 chance"]
["11 vs 15","-","-","-","-","-","-",9555,"*","Expect the 11 seed to be favorites as a 15 has never even advanced this far."]
["14 vs 15","-","-","-","-","-","-",5555,"*","Another coinflip game, but giving the edge to the 14 seed just because they have been to the Sweet Sixteen before and need the monkey off their back"]
[]
["Elite Eight","High","Low","Total","% High","% Low","RNG","RNG Used"]
["1 vs 2",18,20,{"$f":"B66+C66","v":38},{"$f":"B66/D66","v":0.47368421052631576},{"$f":"C66/D66","v":0.52631578947368418},{"$f":"E66*10000","v":4736.8421052631575},4737,"*","Suprisingly 2 seed is slightly favored, but in the Final Four and Championship, the 1 seed is highly favored"]
["1 vs 3",12,8,{"$f":"B67+C67","v":20},{"$f":"B67/D67","v":0.6},{"$f":"C67/D67","v":0.4},{"$f":"E67*10000","v":6000},6000]
["1 vs 6",6,2,8,0.75,0.25,7500,7500,"*","Not enough games but probably close to the true trend"]
["1 vs 7",4,0,4,1,0,10000,8750,"*","The 7 is bound to win at some point, but because of how they play against other high seeds (2 and 3), they are probably a 1 in 8 chance."]
["1 vs 10",4,0,4,1,0,10000,8650,"*","The 10 plays a lot tougher against higher seeds (2 and 3) than the 7, so altough not likely to win just a slightly better chance than the 7 seed."]
["1 vs 11",2,3,5,0.4,0.6,4000,6667,"*","Very big surprise, but probably a fluke as only 5 games have been played. Adrenaline can only go so far, so expecting this to be closer to a 1 in 3 chance of an upset."]
["1 vs 14","-","-","-","-","-","-",9950,"*","Would expect the 14 seed to be a huge underdog, especially because no seed higher than 12 has made it this far"]
["1 vs 15","-","-","-","-","-","-",9950,"*","Would expect the 15 seed to be a huge underdog, especially because no seed higher than 12 has made it this far"]
["2 vs 4",2,4,6,0.33333333333333331,0.66666666666666663,3333.333333333333,5000,"*","2 seeds don't show up unless they are plaing the 1 seed it looks like, but this in reality is probably a coin flip"]
["2 vs 5",0,3,3,0,1,0,4550,"*","Same reasoning as above, this is probably closer to a coin flip, but because a 2 has never beaten a 5, will give 5 a slight edge"]
["2 vs 8",2,2,4,0.5,0.5,5000,5555,"*","Give the 2 seed an edge because there just haven't been enough games to show a trend."]
["2 vs 9","-","-","-","-","-","-",8222,"*","Going to make the 2 seed a big favorite because 9 seeds don't get it done after the first round"]
["2 vs 12",1,0,1,1,0,10000,9222,"*","Only one 12 seed has ever made it this far, and I agree that the journey ends here"]
["2 vs 13","-","-","-","-","-","-",9935,"*","Unfortunately for the 13 seed, they have historically played the 1 seed in the previous round, and thus have never been this far."]
["2 vs 16","-","-","-","-","-","-",9965,"*","If a 16 seed were to ever win a game, I don't believe there run would last this long. Very slim chances"]
["3 vs 4",2,1,3,0.66666666666666663,0.33333333333333331,6666.6666666666661,6674,"*","Overall the 3 seed is 4-1 against the 4 seed, winning twice in the Final Four"]
["3 vs 5",2,1,3,0.66666666666666663,0.33333333333333331,6666.6666666666661,5674,"*","Much like the 4 seed, the 5 seed does well in this round, with a 6-2 record. Another Coin Flip like game."]
["3 vs 8",1,0,1,1,0,10000,5222,"*","8 seeds have played well in the Elite Eight, even splitting a four game series with the 2 seed. Likely a coin flip, but giving a slight edge to the 3 seed because they have done it before."]
["3 vs 9",1,0,1,1,0,10000,8000,"*","The 9 seed has only eveer been to the Elite Eight once, losing to the 3 seed. Giving them a 20% edge, maybe out of sheer luck they can get it done."]
["3 vs 12","-","-","-","-","-","-",9222,"*","The end of the road is in sight, but don't see the 12 seed making the hump this time around, using the same probability as if they were playing the 2."]
["3 vs 13","-","-","-","-","-","-",9545,"*","The 13 seed has never been this far before, losing in all 5 Sweet Sixteen games it has had. Expecting a loss due to being in unkown territory."]
["3 vs 16","-","-","-","-","-","-",9945,"*","16 seed is a very long shot, winning less than 1 %"]
["4 vs 6",2,1,3,0.66666666666666663,0.33333333333333331,6666.6666666666661,7850,"*","4 seed is a strong favorite because of how well they do in this round, whereas the 6 seed is a combined 3-10. "]
["4 vs 7",2,0,2,1,0,10000,8850,"*","7 seeds are not as strong as the 6 seed in this round, so they get a 10% chance less of the upset. "]
["4 vs 10",2,0,2,1,0,10000,9341,"*","10 seed is a heavy underdog because they have never advanced pass this round."]
["4 vs 11","-","-","-","-","-","-",7433,"*","11 seeds are actually extremely good in this round, with an overall record of 3-2, all against 1 seeds. Realistically they are still underdogs, but would fare better than the 10 seed."]
["4 vs 14","-","-","-","-","-","-",9276,"*","14 seed has never been here, and since the 4 seed is usually coming off a victory over the 1, they have to be heavy favorites."]
["4 vs 15","-","-","-","-","-","-",9611,"*","15 seed has never advanced past the second round, and expecting the 4 seed to play as tough as the 1 seed, they would only fare slightly better than the reasoing given above against the 1 seed."]
["5 vs 6",1,0,1,1,0,10000,5555,"*","5 seeds are stronger in this round then the 6 round, but because the seeding is so similar giving just a small edge to the 5 seed."]
["5 vs 7","-","-","-","-","-","-",7838,"*","7 seeds are 0 for 7 in the Elite Eight, and facing a 5 seed would give them a chance, but the odds are not in their favor."]
["5 vs 10",1,0,1,1,0,10000,9269,"*","10 seeds have the unfortunate task of playing either the 1 seed, or the team that beat the 1 seed and so have never advanced past this round."]
["5 vs 11","-","-","-","-","-","-",6161,"*","11 seeds are 3-2 in this round, facing the 1 seed everytime. Credit great coaching on getting the team this far with 3 upsets, but the 5 probably came off a victory vs the 1 seed. Great matchup, but the 5 seed gets the edge."]
["5 vs 14","-","-","-","-","-","-",8972,"*","A 14 seed has never made it to the Elite Eight before and the 5 seed would have had to beat  a 1 or 4 to get here so they would be heavily favored "]
["5 vs 15","-","-","-","-","-","-",9298,"*","The 15 seed has never even made it to the Sweet 16 so the 5 will be heavily favored"]
["6 vs 8",0,1,1,0,1,0,3687,"*","Historically the 8 seed has done better in the Elite Eight than the 6 seed, so they are slight favorites"]
["6 vs 9","-","-","-","-","-","-",8427,"*","The 9 seed has only been to the Elite Eight once, and historically don’t go very far in the tournament so the 6 seed will have a big advantage"]
["6 vs 12","-","-","-","-","-","-",8638,"*","Only one 12 seed has come this far, but the 6 seed typically doesn’t do well in the elite eight so the 6 will be significantly favored to win"]
["6 vs 13","-","-","-","-","-","-",8999,"*","The 13 seed has never been to the Elite Eight so the odds are not in their favor"]
["6 vs 16","-","-","-","-","-","-",9921,"*","The odds of this happening are extremely small, 6 has the edge"]
["7 vs 8",0,1,1,0,1,0,2312,"*","7 seeds have never won in the elite eight and 8 seeds typically play really well here so the 8 is a heavy favorite to win"]
["7 vs 9","-","-","-","-","-","-",7720,"*","Surpisingly the 9 seeds have done extremely poorly even though they hold the edge overall in the first round vs the 8 seeds, so 7 seed is strongly favored."]
["7 vs 12","-","-","-","-","-","-",7865,"*","The advantage goes to the 7 seed because the 12 seed has slim odds of even getting this far."]
["7 vs 13","-","-","-","-","-","-",8147,"*","Again, with the lack of experience for the 13 seed, the 6 seed is a big favorite."]
["7 vs 16","-","-","-","-","-","-",9876,"*","If the 16 seed and 7 seed were to matchup, the laws of gravity would be reversed."]
["8 vs 10","-","-","-","-","-","-",8243,"*","The 8 and 10 seeds would be lopsided as the 8 seeds play tougher and tougher as the tournament goes on, where the 10 seeds trend to fade off."]
["8 vs 11","-","-","-","-","-","-",5283,"*","11 seeds play well if they ever get this far, and this matchup occurred in the Final Four in 2011, so expecting a great match."]
["8 vs 14","-","-","-","-","-","-",8678,"*","8 seeds would likely have a great advantage over the 14 seed"]
["8 vs 15","-","-","-","-","-","-",8878,"*","This would be very unlikely, but expecting the 8 seed to advance and end the dreams of the 15 seed."]
["9 vs 10","-","-","-","-","-","-",5134,"*","Neither team has been to the Final Four, and I would expect almost a coinflip, but giving the slight edge to the 9 seed."]
["9 vs 11","-","-","-","-","-","-",4157,"*","11 seed would have to be favored because of past experience of actually making it to the Final Four."]
["9 vs 14","-","-","-","-","-","-",7129,"*","9 seed is favored, but if a 14 seed got this far they would stand a chance against the 9."]
["9 vs 15","-","-","-","-","-","-",9286,"*","9 seed is heavily favored, and the 15 seed will end up going back home, but the probability of them being here in the first place is low"]
["10 vs 12","-","-","-","-","-","-",6333,"*","Giving the edge to the 10 seed because they get to this point of the tournament once every four years, and the 12 seed has only been once"]
["10 vs 13","-","-","-","-","-","-",9145,"*","Another big edge to the 10 seed because the 13 seed has never even been here before."]
["10 vs 16","-","-","-","-","-","-",9567,"*","Huge advantage to the 10 seed. If this matchup occurred, I would eat a tree."]
["11 vs 12","-","-","-","-","-","-",7983,"*","11 seed gets the edge because they have been trending towards being great (George Mason and VCU recently) whereas the 12 seed has not been as strong."]
["11 vs 13","-","-","-","-","-","-",8345,"*","11 seed is definitely heavily favored, moreso than against the 12 seed"]
["11 vs 16","-","-","-","-","-","-",9678,"*","Probably the worst chance the 16 seed has against any double digit seeded team"]
["12 vs 14","-","-","-","-","-","-",7129,"*","Edge goes to the 12 seed because the 14 seed really doesn't even have much of a shot of getting this far."]
["12 vs 15","-","-","-","-","-","-",7823,"*","15 seeds have never even made it to the Sweet Sixteen, so the 12 would have the advantage"]
["13 vs 14","-","-","-","-","-","-",5243,"*","Neither have made it to the Elite Eight, but this has to be evenly matched with only a slight edge given to the 13 because they have more wins overall."]
["13 vs 15","-","-","-","-","-","-",5575,"*","Highly improbable matchup, but given the fact that the 15 seed has never made past the second round, the 13 is somewhat favored"]
["14 vs 16","-","-","-","-","-","-",5682,"*","Not likely, basically a coinflip but the 14 has a slight edge"]
["15 vs 16","-","-","-","-","-","-",5000,"*","This would be an awesome matchup, and a coinflip, but you will probably be struck by lighting several times before this ever happens"]
[]
["Final Four/Championship","High","Low","Total","% High","% Low","RNG","RNG Used","*","The Final Four and Championship are combined to one because the seed combinations are the exact same for both."]
["1 vs 1",16,16,16,{"$f":"B132/D132","v":1},{"$f":"C132/D132","v":1},{"$f":"E132*10000","v":10000},5000,"*","Same seeds will always be a coinflip."]
["1 vs 2",12,5,{"$f":"B133+C133","v":17},{"$f":"B133/D133","v":0.70588235294117652},{"$f":"C133/D133","v":0.29411764705882354},{"$f":"E133*10000","v":7058.8235294117649},7059,"*","Although 2 seeds have a winning record (20-18) vs 1 seeds in the Elite Eight, once it gets to this stage they struggle, so credit the 1 seed for coming through in crunch time."]
["1 vs 3",3,4,7,0.42857142857142855,0.5714285714285714,4285.7142857142853,5294,"*","Not enough games to consider this the trend, so using the combined record from the Elite Eight we get the 1 seed with a record of 15-12, but going to weight this round a little heavier by doubling the results to give us 18-16."]
["1 vs 4",6,2,8,0.75,0.25,7500,7173,"*","Going to make this more like what we see in the Sweet Sixteen, as I feel this is an unfair trend for the 4."]
["1 vs 5",4,0,4,1,0,10000,8333,"*","Not a gimme game for the 1 seed, because they have lost to a 6 and 8 seed before (NC State and Jimmy V), but probably a very favorable matchup for the 1."]
["1 vs 6",1,1,2,0.5,0.5,5000,7777,"*","Only 2 games played which were split, but considering its only two games, probably going to give the edge to the 1 seed by a longshot."]
["1 vs 7","-","-","-","-","-","-",8666,"*","Seeing as 7s don't get here, there is no reason to believe they would do that well."]
["1 vs 8",1,1,2,0.5,0.5,5000,7982,"*","8s are the highest seeds to ever win in this round, but only 1 victory has occurred besides the 8 vs 11 (Butler and VCU in 2011). They are tougher than a 7, so probably similar to a 5 or 6 seed."]
["1 vs 9","-","-","-","-","-","-",8798,"*","More so than the 7 seeds, they struggle in later rounds."]
["1 vs 10","-","-","-","-","-","-",8888,"*","If a 10 seed makes it this far, then they still have a huge battle to come."]
["1 vs 11","-","-","-","-","-","-",7999,"*","Giving the 11 seed about the same shot as an 8 seed against the 1, because they have made it this far before."]
["1 vs 12","-","-","-","-","-","-",9263,"*","12 seed would struggle because they have only 1 Elite Eight appearance, which they lost, but they are 18-1 in the Sweet Sixteen, with the only victory against an 8 seed."]
["1 vs 13","-","-","-","-","-","-",9311,"*","13 seed would be even less likely to win than a 12."]
["1 vs 14","-","-","-","-","-","-",9457,"*","These matchups, although would lead headlines, would in reality almost never occur, and if they did, it is only one more giant to slay on top of all the other upsets."]
["1 vs 15","-","-","-","-","-","-",9677,"*","Just a little closer to a slaughter than the 14 seed."]
["1 vs 16","-","-","-","-","-","-",9725,"*","Not as favorable as in the First Round where the 1 seed is undefeated, but if a 16 seed made it this far, they win maybe 1 in 20."]
["2 vs 2",2,2,2,1,1,10000,5000]
["2 vs 3",6,4,10,0.6,0.4,6000,6000]
["2 vs 4",1,0,1,1,0,10000,5000,"*","Giving double the weight to the games in the Final Four, this gives the 2 and 4 seeds a coinflip, because the 4 seed actually has the better record in the Elite Eight at 4-2."]
["2 vs 5",0,1,1,0,1,0,4785,"*","Surprisingly the 2 seed is 0-4 against the 5 seed, so going to give 5 seed the advantage but should be closer to a coinflip"]
["2 vs 6",1,1,2,0.5,0.5,5000,7415,"*","The 2 seed is 21-7 against the 6 seed, going back to the Sweet Sixteen"]
["2 vs 7","-","-","-","-","-","-",7385,"*","Using the same records from the Second Round"]
["2 vs 8",0,1,1,0,1,0,5035,"*","The 2 seed is a slight underdog because overall is only 2-3 against the 8 seed, but a coinflip is expected."]
["2 vs 9","-","-","-","-","-","-",8222,"*","Giving a large edge to the 2 seed, with the same likelihood as in the Elite Eight"]
["2 vs 10","-","-","-","-","-","-",5854,"*","Using the same records from the Second Round"]
["2 vs 11",1,0,1,1,0,10000,9167,"*","The 2 seed is 11-1 against the 11 all time."]
["2 vs 12","-","-","-","-","-","-",8722,"*","Using the same arguments as in the Elite Eight because this has never happened, but making it 5% closer"]
["2 vs 13","-","-","-","-","-","-",9435,"*","Using the same arguments as in the Elite Eight because this has never happened, but making it 5% closer"]
["2 vs 14","-","-","-","-","-","-",9777,"*","This has never occurred, so using the same idea as in the Sweet Sixteen"]
["2 vs 15","-","-","-","-","-","-",9464,"*","A 15 seed has never made it past the Second Round, so just going to use the same value as the First Round because this is unlikely to occur."]
["2 vs 16","-","-","-","-","-","-",9765,"*","Using the same arguments as in the Elite Eight because this has never happened, but making it 2% closer"]
["3 vs 3",1,1,1,1,1,10000,5000]
["3 vs 4",2,0,2,1,0,10000,7899,"*","Overall the 3 seed is 4-1 against the 4"]
["3 vs 5","-","-","-","-","-","-",6674,"*","Happened 3 times in the Elite Eight, with a 2:1 edge for the 3 seed"]
["3 vs 6","-","-","-","-","-","-",5574,"*","Using the results from the Second Round for this one, which is near a coinflip"]
["3 vs 7","-","-","-","-","-","-",6667,"*","Using the results from the Sweet Sixteen"]
["3 vs 8",1,0,1,1,0,10000,7658,"*","3 seed is 2-0 against the 8, and it would trend to be a very large hill to climb for the 8 seed."]
["3 vs 9","-","-","-","-","-","-",8000,"*","The only time a 9 seed made it to the Elite Eight, a 3 seed beat them."]
["3 vs 10","-","-","-","-","-","-",6923,"*","Using the same results from the Sweet Sixteen"]
["3 vs 11",1,0,1,1,0,10000,7071,"*","Using the results from the Second round, but then adding 5% to the 3 seed for beating the 11 this late before."]
["3 vs 12","-","-","-","-","-","-",8722,"*","Using the same arguments as in the Elite Eight because this has never happened, but making it 5% closer"]
["3 vs 13","-","-","-","-","-","-",9187,"*","The 13 seed has never been this far before, losing in all 5 Sweet Sixteen games it has had. Expecting a loss due to being in unkown territory."]
["3 vs 14","-","-","-","-","-","-",9171,"*","Straying off the trend of the First Round because of uncharted territory for the 14 seed."]
["3 vs 15","-","-","-","-","-","-",9430,"*","Has never occurred, so just making it 5% closer than in the Sweet Sixteen"]
["3 vs 16","-","-","-","-","-","-",9667,"*","What is a 16 seed to a 3 seed? Food."]
["4 vs 4","-","-","-","-","-","-",5000]
["4 vs 5",1,0,1,1,0,10000,5333,"*","Using the same number as in the Second Round"]
["4 vs 6",0,1,1,0,1,0,6123,"*","Alltime this matchup is 2-2 including the Elite Eight, but 6 seeds have not shown consistency in late stages where the 4 seed can"]
["4 vs 7","-","-","-","-","-","-",7185,"*","Unlikely in the Final Four, but if it did happen the 4 seed would be favorites"]
["4 vs 8","-","-","-","-","-","-",4876,"*","It doesn't even occur too often in the Sweet Sixteen, and surprisingly the 8 seed has the better record. Very close to a coinflip at this point."]
["4 vs 9","-","-","-","-","-","-",8127,"*","Making it a little closer than what was used during the Sweet Sixteen"]
["4 vs 10","-","-","-","-","-","-",8679,"*","Would be a great headliner to see the 10 seed advance, but it is not likely to occur."]
["4 vs 11","-","-","-","-","-","-",7678,"*","11 seeds play well in the Elite Eight, but are 0-3 in the Final Four rounds. They do play well against the 1 seed, just like the 4 so going to give them a lot better odds than would seem logical."]
["4 vs 12","-","-","-","-","-","-",7071,"*","Using the Second Round stats, but giving a 10%boost to the 4 seed simply because they've been in this stage before."]
["4 vs 13","-","-","-","-","-","-",7857,"*","Using the First Round Stats"]
["4 vs 14","-","-","-","-","-","-",9276,"*","Using the same reasoning as used in the Elite Eight"]
["4 vs 15","-","-","-","-","-","-",9611,"*","Using the same reasoning as used in the Elite Eight"]
["4 vs 16","-","-","-","-","-","-",9714,"*","4 seed would be a slightly heavier favorite than even the 3 seed."]
["5 vs 5",1,1,1,1,1,10000,5000]
["5 vs 6","-","-","-","-","-","-",5155,"*","5 seed won the only previous in the matchup, but in reality a coin flip"]
["5 vs 7","-","-","-","-","-","-",7465,"*","7 seeds have never advanced past the Elite Eight. Giving it slightly closer matchup than used in the Elite Eight"]
["5 vs 8",1,0,1,1,0,10000,5055,"*","Coin flip, because using the Sweet Sixteen and weighting the Final Four matchup, although the 5 seed is 1-2, they won the one that mattered."]
["5 vs 9","-","-","-","-","-","-",6925,"*","Making it closer by about 5% than used in the Sweet Sixteen"]
["5 vs 10","-","-","-","-","-","-",8769,"*","Ccloser by 5% than used in the Elite Eight"]
["5 vs 11","-","-","-","-","-","-",7256,"*","Going off of what was used for the 4 seed agains the 11 in this round, going to make it similar."]
["5 vs 12","-","-","-","-","-","-",6607,"*","Using the First Round Stats"]
["5 vs 13","-","-","-","-","-","-",8457,"*","Using the Second Round stats, but giving a 6%boost to the 5 seed simply because they've been in this stage before."]
["5 vs 14","-","-","-","-","-","-",8472,"*","Using the same projection as the Elite Eight, but a 5% boost to even things up a little more"]
["5 vs 15","-","-","-","-","-","-",8798,"*","Using the same projection as the Elite Eight, but a 5% boost to even things up a little more"]
["5 vs 16","-","-","-","-","-","-",9414,"*","16 seed would have a 3% better chance than when playing a 4 seed this late"]
["6 vs 6","-","-","-","-","-","-",5000]
["6 vs 7","-","-","-","-","-","-",5555,"*","6 seed gets a slight advantage over just a coin flip"]
["6 vs 8","-","-","-","-","-","-",5000,"*","Great match, expecting a coin flip"]
["6 vs 9","-","-","-","-","-","-",8427,"*","Using the same as in the Elite Eight"]
["6 vs 10","-","-","-","-","-","-",6972,"*","Using the same as in the Sweet Sixteen, but giving the 6 seed an extra 7%"]
["6 vs 11","-","-","-","-","-","-",6907,"*","Using the First Round stats but with a 3% bonus to the 6 seed."]
["6 vs 12","-","-","-","-","-","-",8138,"*","Same as Elite Eight but giving extra 5% to the 12 seed"]
["6 vs 13","-","-","-","-","-","-",8999,"*","Same as Elite Eight"]
["6 vs 14","-","-","-","-","-","-",9167,"*","Using the same as the Second Round, but with a 5% bonus to the 6 seed."]
["6 vs 15","-","-","-","-","-","-",9367,"*","Same as the 6 vs 14 matchup, with a 2% bonus"]
["6 vs 16","-","-","-","-","-","-",9414,"*","Samew as the 5 vs 16."]
["7 vs 7","-","-","-","-","-","-",5000]
["7 vs 8","-","-","-","-","-","-",3312,"*","Favoring the 8 seed because of how well they play in this round by about a 2:1 odds"]
["7 vs 9","-","-","-","-","-","-",5589,"*","Slightly favoring the 7 seed over the 9, but both are in unchartered territory."]
["7 vs 10","-","-","-","-","-","-",5982,"*","Using the First Round Stats"]
["7 vs 11","-","-","-","-","-","-",4132,"*","11 seed is 3-0 against the 7 when they have met in the Sweet Sixteen, but some more balance would be expected"]
["7 vs 12","-","-","-","-","-","-",5764,"*","Newcomers to this stage, so shold be a good one with an edge to the 7 seed"]
["7 vs 13","-","-","-","-","-","-",6764,"*","Giving the 7 seed a 10% better chance agains the 13 than the 12"]
["7 vs 14","-","-","-","-","-","-",9191,"*","Using what was used in the Sweet Sixteen"]
["7 vs 15","-","-","-","-","-","-",9375,"*","Using what was used in the Second Round"]
["7 vs 16","-","-","-","-","-","-",9576,"*","Looking at what was determined for the Elite Eight, but giving the 16 seed an extra 3%"]
["8 vs 8","-","-","-","-","-","-",5000]
["8 vs 9","-","-","-","-","-","-",7625,"*","Although the 9 seed holds the advantage in the First Round, that is the only time. 8 seeds are stronger and stronger late in the tournament, while 9 seeds don't advance."]
["8 vs 10","-","-","-","-","-","-",8243,"*","Using what was used in the Elite Eight"]
["8 vs 11",1,0,1,1,0,10000,5283,"*","Very close to a coinflip, using the same as in the Elite Eight"]
["8 vs 12","-","-","-","-","-","-",8333,"*","Our logic for the Sweet Sixteen matchup is proven, although the 12 seed won the only game, that could be considered a fluke, so giving the 8 heavy favorites."]
["8 vs 13","-","-","-","-","-","-",8777,"*","Just looking at the comparisons between a 12 and a 13 seed, the 8 seed would dominate the 13 seed even more so"]
["8 vs 14","-","-","-","-","-","-",8678,"*","Using what was used in the Elite Eight"]
["8 vs 15","-","-","-","-","-","-",8878,"*","Using what was used in the Elite Eight"]
["8 vs 16","-","-","-","-","-","-",8889,"*","Considering the only other time this occurs would be in the Second Round, the 16 seed would bottom out after finally beating a 1 seed. But to make it this far, you have to give the 16 seed a little bit of a better shot"]
["9 vs 9","-","-","-","-","-","-",5000]
["9 vs 10","-","-","-","-","-","-",5154,"*","Slight edge to the 9 seed, only because they probably had a more proven road."]
["9 vs 11","-","-","-","-","-","-",4157,"*","Using the Elite Eight Stats"]
["9 vs 12","-","-","-","-","-","-",7479,"*","Has never even occurred in the Sweet Sixteen, so unlikely to occur here. Giving the 9 seed a 3:1 edge"]
["9 vs 13","-","-","-","-","-","-",7821,"*","Giving the 9 a slightly higher edge than agains the 12"]
["9 vs 14","-","-","-","-","-","-",7829,"*","Pretty much same as the 9 vs 13 at this point"]
["9 vs 15","-","-","-","-","-","-",8726,"*","Using a 5% bonus to the 15 seed than used in the Elite Eight"]
["9 vs 16","-","-","-","-","-","-",8888,"*","Never occurred because a 16 seed can't even win a game, but considering they would have won 4 in a row by now, going to give them what may be an overrated shot."]
["10 vs 10","-","-","-","-","-","-",5000]
["10 vs 11","-","-","-","-","-","-",4398,"*","Although has been stated about the double digit seed matchups, the higher seed rarely wins, this is a case where it is a virtual coinflip, but because of past accomplishments, the 11 gets the nod."]
["10 vs 12","-","-","-","-","-","-",6333,"*","Using what was used in the Elite Eight"]
["10 vs 13","-","-","-","-","-","-",7745,"*","Lack of experience in earlier rounds and the frequency advantage that the 10 seed gets to the Elite Eight give them a heavy advantage."]
["10 vs 14","-","-","-","-","-","-",8193,"*","Unlike the 11 seed, the 14 seed will struggle with the 10 seed mightily."]
["10 vs 15","-","-","-","-","-","-",8611,"*","In all fairness to the 15 seed, they are getting a 5% boost than from their Second Round match up."]
["10 vs 16","-","-","-","-","-","-",9567,"*","Same as in the Elite Eight"]
["11 vs 11","-","-","-","-","-","-",5000]
["11 vs 12","-","-","-","-","-","-",7983,"*","Using the fact that the 11 is the only double digit seed to get this far (3 times) they have to be highly favored in most of these double digit matchups."]
["11 vs 13","-","-","-","-","-","-",8345,"*","Same as in the Elite Eight"]
["11 vs 14","-","-","-","-","-","-",8611,"*","Slight boost than the matchup we would have seen in the Sweet Sixteen, but 14 is still a huge underdog."]
["11 vs 15","-","-","-","-","-","-",9155,"*","Slight boost than the matchup we would have seen in the Sweet Sixteen, but 15 is still a huge underdog."]
["11 vs 16","-","-","-","-","-","-",9678,"*","Considering that historically, of all double digit seeds the 11 is Goliath, and the 16 seed David has no more stones to sling"]
["12 vs 12","-","-","-","-","-","-",5000]
["12 vs 13","-","-","-","-","-","-",6574,"*","12 owns the overall 8-2 in the Second Round, but considering uncharted territory for both teams, making it a closer pick"]
["12 vs 14","-","-","-","-","-","-",6872,"*","Both teams are in new territory, but the 14 may be in over their heads."]
["12 vs 15","-","-","-","-","-","-",7823,"*","Using same as in the Elite Eight"]
["12 vs 16","-","-","-","-","-","-",8167,"*","Two cinderellas in unfamiliar territory. Could be a coinflip, but tournament records must be employed to give the 12 seed an edge."]
["13 vs 13","-","-","-","-","-","-",5000]
["13 vs 14","-","-","-","-","-","-",5243,"*","Uncharted territory for both, but the 13 seed is higher than the 14 for a reason."]
["13 vs 15","-","-","-","-","-","-",6198,"*","The 13 has longer runs in the tournament(although still short) than the 15, so they get the edge"]
["13 vs 16","-","-","-","-","-","-",7889,"*","The 16 seed finally sees more favorable odds, but they are still an underdog."]
["14 vs 14","-","-","-","-","-","-",5000]
["14 vs 15","-","-","-","-","-","-",5555,"*","Coinflip with advantage to the 14 seed, simply because they have advanced to the Sweet Sixteen while the 15 seed has not."]
["14 vs 16","-","-","-","-","-","-",5982,"*","14 seed and 16 seed, giving 3:2 odds for the 14."]
["15 vs 15","-","-","-","-","-","-",5000]
["15 vs 16","-","-","-","-","-","-",5000,"*","Coinflip, and soon to be classic if this ever occurred"]
["16 vs 16","-","-","-","-","-","-",5000]

{"sheet":"South","index":1,"n_rows":24,"n_cols":19,"rows_kept":24,"cut":false,"hidden":false,"merged":[[0,16,0,18],[3,6,3,8],[4,7,4,8],[10,7,11,7],[0,0,0,14],[1,0,1,1],[1,2,1,3],[1,4,1,5],[1,6,1,8],[1,9,1,10],[1,11,1,12],[1,13,1,14],[20,0,20,1],[6,3,7,3],[14,3,15,3],[10,5,11,5],[6,11,7,11],[14,11,15,11],[10,9,11,9]]}
["South Division",null,null,null,null,null,null,null,null,null,null,null,null,null,null,null,"Accuracy"]
["First Round",null,"Second Round",null,"Sweet Sixteen",null,"Elite Eight",null,null,"Sweet Sixteen",null,"Second Round",null,"First Round",null,null,"Round","Correct","Points"]
[null,null,null,null,null,null,null,null,null,null,null,null,null,null,null,null,"First Round",8,{"$f":"R3*10","v":80}]
[1,"Kentucky",null,null,null,null,"Champion",null,null,null,null,null,null,"Baylor",3,null,"Second Round",4,{"$f":"R4*20","v":80}]
[null,"[1]",1,"Kentucky",null,null,1,"Kentucky",null,null,null,"Baylor",3,"[5]",null,null,"Sweet Sixteen",2,{"$f":"R5*40","v":80}]
[16,"Miss Valley State",null,null,null,null,null,null,null,null,null,null,null,"South Dakota St.",14,null,"Elite Eight",1,{"$f":"R6*80","v":80}]
[null,null,null,"[9]",1,"Kentucky",null,null,null,"Baylor",3,"[11]",null,null,null,null,"Total",{"$f":"SUM(R3:R6)","v":15},{"$f":"SUM(S3:S6)","v":320}]
[9,"UConn",null,null,null,null,null,null,null,null,null,null,null,"Colorado",11]
[null,"[2]",8,"Iowa State",null,null,1,"Kentucky",null,null,null,"Colorado",11,"[6]"]
[8,"Iowa State",null,null,null,null,null,null,null,null,null,null,null,"UNLV",6]
[null,null,null,null,null,"[13]",null,"Champisonship",null,"[14]"]
[5,"Wichita State",null,null,null,null,null,null,null,null,null,null,null,"Notre Dame",7]
[null,"[3]",12,"VCU",null,null,null,"Baylor",3,null,null,"Xavier",10,"[7]"]
[12,"VCU",null,null,null,null,null,null,null,null,null,null,null,"Xavier",10]
[null,null,null,"[10]",4,"Indiana",null,null,null,"Xavier",10,"[12]"]
[13,"New Mexico State",null,null,null,null,null,null,null,null,null,null,null,"Lehigh",15]
[null,"[4]",4,"Indiana",null,null,null,null,null,null,null,"Lehigh",15,"[8]"]
[4,"Indiana",null,null,null,null,null,null,null,null,null,null,null,"Duke",2]
[]
[]
["Play-In Game # 1"]
[16,"Miss Valley State"]
[null,"[P1]",16,"Western Kentucky"]
[16,"Western Kentucky"]

{"sheet":"West","index":2,"n_rows":24,"n_cols":19,"rows_kept":24,"cut":false,"hidden":false,"merged":[[14,11,15,11],[10,7,11,7],[0,16,0,18],[20,0,20,1],[0,0,0,14],[6,3,7,3],[6,11,7,11],[10,5,11,5],[10,9,11,9],[1,0,1,1],[1,2,1,3],[1,4,1,5],[1,6,1,8],[1,9,1,10],[1,11,1,12],[1,13,1,14],[3,6,3,8],[4,7,4,8],[14,3,15,3]]}
["West Division",null,null,null,null,null,null,null,null,null,null,null,null,null,null,null,"Accuracy"]
["First Round",null,"Second Round",null,"Sweet Sixteen",null,"Elite Eight",null,null,"Sweet Sixteen",null,"Second Round",null,"First Round",null,null,"Round","Correct","Points"]
[null,null,null,null,null,null,null,null,null,null,null,null,null,null,null,null,"First Round",8,{"$f":"R3*10","v":80}]
[1,"Michigan State",null,null,null,null,"Champion",null,null,null,null,null,null,"Marquette",3,null,"Second Round",4,{"$f":"R4*20","v":80}]
[null,"[1]",1,"Michigan State",null,null,4,"Louisville",null,null,null,"Marquette",3,"[5]",null,null,"Sweet Sixteen",2,{"$f":"R5*40","v":80}]
[16,"LIU Brooklyn",null,null,null,null,null,null,null,null,null,null,null,"BYU",14,null,"Elite Eight",1,{"$f":"R6*80","v":80}]
[null,null,null,"[9]",1,"Michigan State",null,null,null,"Marquette",3,"[11]",null,null,null,null,"Total",{"$f":"SUM(R3:R6)","v":15},{"$f":"SUM(S3:S6)","v":320}]
[9,"Saint Louis",null,null,null,null,null,null,null,null,null,null,null,"Colorado State",11]
[null,"[2]",9,"Saint Louis",null,null,4,"Louisville",null,null,null,"Murray State",6,"[6]"]
[8,"Memphis",null,null,null,null,null,null,null,null,null,null,null,"Murray State",6]
[null,null,null,null,null,"[13]",null,"Champisonship",null,"[14]"]
[5,"New Mexico",null,null,null,null,null,null,null,null,null,null,null,"Florida",7]
[null,"[3]",5,"New Mexico",null,null,null,"Florida",7,null,null,"Florida",7,"[7]"]
[12,"Long Beach State",null,null,null,null,null,null,null,null,null,null,null,"Virginia",10]
[null,null,null,"[10]",4,"Louisville",null,null,null,"Florida",7,"[12]"]
[13,"Davidson",null,null,null,null,null,null,null,null,null,null,null,"Norfolk State",15]
[null,"[4]",4,"Louisville",null,null,null,null,null,null,null,"Norfolk State",15,"[8]"]
[4,"Louisville",null,null,null,null,null,null,null,null,null,null,null,"Missouri",2]
[]
[]
["Play-In Game # 2"]
[14,"BYU"]
[null,"[P3]",14,"BYU"]
[14,"Iona"]

{"sheet":"East","index":3,"n_rows":18,"n_cols":19,"rows_kept":18,"cut":false,"hidden":false,"merged":[[14,3,15,3],[14,11,15,11],[10,7,11,7],[0,16,0,18],[0,0,0,14],[6,3,7,3],[6,11,7,11],[10,5,11,5],[10,9,11,9],[1,0,1,1],[1,2,1,3],[1,4,1,5],[1,6,1,8],[1,9,1,10],[1,11,1,12],[1,13,1,14],[3,6,3,8],[4,7,4,8]]}
["East Division",null,null,null,null,null,null,null,null,null,null,null,null,null,null,null,"Accuracy"]
["First Round",null,"Second Round",null,"Sweet Sixteen",null,"Elite Eight",null,null,"Sweet Sixteen",null,"Second Round",null,"First Round",null,null,"Round","Correct","Points"]
[null,null,null,null,null,null,null,null,null,null,null,null,null,null,null,null,"First Round",8,{"$f":"R3*10","v":80}]
[1,"Syracuse",null,null,null,null,"Champion",null,null,null,null,null,null,"Florida State",3,null,"Second Round",4,{"$f":"R4*20","v":80}]
[null,"[1]",1,"Syracuse",null,null,2,"Ohio State",null,null,null,"Florida State",3,"[5]",null,null,"Sweet Sixteen",2,{"$f":"R5*40","v":80}]
[16,"UNC-Asheville",null,null,null,null,null,null,null,null,null,null,null,"St. Bonaventure",14,null,"Elite Eight",1,{"$f":"R6*80","v":80}]
[null,null,null,"[9]",1,"Syracuse",null,null,null,"Cincinnati",6,"[11]",null,null,null,null,"Total",{"$f":"SUM(R3:R6)","v":15},{"$f":"SUM(S3:S6)","v":320}]
[9,"Southern Miss",null,null,null,null,null,null,null,null,null,null,null,"Texas",11]
[null,"[2]",8,"Kansas State",null,null,1,"Syracuse",null,null,null,"Cincinnati",6,"[6]"]
[8,"Kansas State",null,null,null,null,null,null,null,null,null,null,null,"Cincinnati",6]
[null,null,null,null,null,"[13]",null,"Champisonship",null,"[14]"]
[5,"Vanderbilt",null,null,null,null,null,null,null,null,null,null,null,"Gonzaga",7]
[null,"[3]",5,"Vanderbilt",null,null,null,"Ohio State",2,null,null,"Gonzaga",7,"[7]"]
[12,"Harvard",null,null,null,null,null,null,null,null,null,null,null,"West Virginia",10]
[null,null,null,"[10]",4,"Wisconsin",null,null,null,"Ohio State",2,"[12]"]
[13,"Montana",null,null,null,null,null,null,null,null,null,null,null,"Loyola (MD)",15]
[null,"[4]",4,"Wisconsin",null,null,null,null,null,null,null,"Ohio State",2,"[8]"]
[4,"Wisconsin",null,null,null,null,null,null,null,null,null,null,null,"Ohio State",2]

{"sheet":"Midwest","index":4,"n_rows":31,"n_cols":19,"rows_kept":31,"cut":false,"hidden":false,"merged":[[1,13,1,14],[3,6,3,8],[4,7,4,8],[0,16,0,18],[20,0,20,1],[27,0,27,1],[14,3,15,3],[14,11,15,11],[0,0,0,14],[6,3,7,3],[6,11,7,11],[10,5,11,5],[10,9,11,9],[10,7,11,7],[1,0,1,1],[1,2,1,3],[1,4,1,5],[1,6,1,8],[1,9,1,10],[1,11,1,12]]}
["Midwest Division",null,null,null,null,null,null,null,null,null,null,null,null,null,null,null,"Accuracy"]
["First Round",null,"Second Round",null,"Sweet Sixteen",null,"Elite Eight",null,null,"Sweet Sixteen",null,"Second Round",null,"First Round",null,null,"Round","Correct","Points"]
[null,null,null,null,null,null,null,null,null,null,null,null,null,null,null,null,"First Round",8,{"$f":"R3*10","v":80}]
[1,"North Carolina",null,null,null,null,"Champion",null,null,null,null,null,null,"Georgetown",3,null,"Second Round",4,{"$f":"R4*20","v":80}]
[null,"[1]",1,"North Carolina",null,null,2,"Kansas",null,null,null,"Georgetown",3,"[5]",null,null,"Sweet Sixteen",2,{"$f":"R5*40","v":80}]
[16,"Vermont",null,null,null,null,null,null,null,null,null,null,null,"Belmont",14,null,"Elite Eight",1,{"$f":"R6*80","v":80}]
[null,null,null,"[9]",1,"North Carolina",null,null,null,"NC State",11,"[11]",null,null,null,null,"Total",{"$f":"SUM(R3:R6)","v":15},{"$f":"SUM(S3:S6)","v":320}]
[9,"Alabama",null,null,null,null,null,null,null,null,null,null,null,"NC State",11]
[null,"[2]",8,"Creighton",null,null,1,"North Carolina",null,null,null,"NC State",11,"[6]"]
[8,"Creighton",null,null,null,null,null,null,null,null,null,null,null,"San Diego State",6]
[null,null,null,null,null,"[13]",null,"Champisonship",null,"[14]"]
[5,"Temple",null,null,null,null,null,null,null,null,null,null,null,"Saint Mary's",7]
[null,"[3]",12,"South Florida",null,null,null,"Kansas",2,null,null,"Purdue",10,"[7]"]
[12,"South Florida",null,null,null,null,null,null,null,null,null,null,null,"Purdue",10]
[null,null,null,"[10]",13,"Ohio",null,null,null,"Kansas",2,"[12]"]
[13,"Ohio",null,null,null,null,null,null,null,null,null,null,null,"Detroit",15]
[null,"[4]",13,"Ohio",null,null,null,null,null,null,null,"Kansas",2,"[8]"]
[4,"Michigan",null,null,null,null,null,null,null,null,null,null,null,"Kansas",2]
[]
[]
["Play-In Game # 3"]
[16,"Lamar"]
[null,"[P3]",16,"Vermont"]
[16,"Vermont"]
[]
[]
[]
["Play-In Game # 4"]
[12,"California"]
[null,"[P4]",12,"South Florida"]
[12,"South Florida"]

{"sheet":"Final Four","index":5,"n_rows":11,"n_cols":12,"rows_kept":11,"cut":false,"hidden":false,"merged":[[0,9,0,11],[0,0,0,7],[1,4,1,7],[10,0,10,1],[8,0,8,1],[6,0,6,1],[4,0,4,1],[1,0,1,1],[1,2,1,3],[5,6,8,6],[5,7,8,7],[3,6,3,7],[4,6,4,7]]}
["Final Four",null,null,null,null,null,null,null,null,"Accuracy"]
["Final Four",null,"Finals",null,"Champions!!!",null,null,null,null,"Round","Correct","Points"]
[null,null,null,null,null,null,null,null,null,"First Round",32,{"$f":"K3*10","v":320}]
[1,"Kentucky",null,null,null,null,"National",null,null,"Second Round",16,{"$f":"K4*20","v":320}]
["South Champs",null,1,"Kentucky",null,null,"Champions",null,null,"Sweet Sixteen",8,{"$f":"K5*40","v":320}]
[4,"Louisville",null,null,null,null,1,"Kentucky",null,"Elite Eight",4,{"$f":"K6*80","v":320}]
["West Champs",null,null,null,null,null,null,null,null,"Final Four",2,{"$f":"K7*160","v":320}]
[2,"Ohio State",null,null,null,null,null,null,null,"Championship",1,{"$f":"K8*320","v":320}]
["East Champs",null,2,"Kansas",null,null,null,null,null,"Total",{"$f":"SUM(K3:K8)","v":63},{"$f":"SUM(L3:L8)","v":1920}]
[2,"Kansas"]
["Midwest Champs"]